bitfinex/quotes_ETHUSD_20220119
["timestamp","ask_amount","ask_price","bid_price","bid_amount"]
[1642559588666,0.476,3166.7,3166.6,8.54131546]
[1642559588866,0.476,3166.7,3166.6,2.68330546]
[1642559589067,0.476,3166.7,3166.6,6.93330546]
[1642559589266,0.476,3166.7,3166.6,8.38330546]
[1642559589469,0.1833,3166.7,3166.6,8.38330546]
[1642559590069,0.1833,3166.7,3166.6,2.68330546]
[1642559590316,0.1833,3166.7,3166.4,2.68330546]
[1642559590515,0.1833,3166.7,3166.5,2.6827583]
[1642559590718,0.00170527,3166.6,3166.3,3.9533]
[1642559590916,0.00170527,3166.6,3166.4,2.68282555]
[1642559591117,0.00113685,3166.5,3166.4,2.68282555]
[1642559591521,0.00568424,3166.5,3166.4,2.68282555]
[1642559592117,0.00568424,3166.5,3166.4,5.05]
[1642559592321,0.00568424,3166.5,3166.4,7.73282555]
[1642559592718,0.18888424,3166.5,3166.4,7.73282555]
[1642559593318,0.18888424,3166.5,3166.4,5.33282555]
[1642559593519,0.18888424,3166.5,3166.4,7.04958329]
[1642559593954,0.18888424,3166.5,3166.4,5.33282555]
[1642559594160,0.18888424,3166.5,3166.4,7.09293755]
[1642559594560,0.22347567,3166.8,3166.5,3.0]
[1642559594759,2.01331567,3166.8,3166.6,2.68282555]
[1642559594958,2.01331567,3166.8,3166.6,2.68680452]
[1642559595158,2.01331567,3166.8,3166.7,2.6862361]
[1642559595360,2.01331567,3166.8,3166.7,2.68602874]
[1642559595564,2.01331567,3166.8,3166.7,0.00341055]
[1642559595962,2.01331567,3166.8,3166.3,2.68828653]
[1642559596161,2.01331567,3166.8,3166.4,2.68771811]
[1642559596361,2.01331567,3166.8,3166.5,2.68260229]
[1642559596561,2.01331567,3166.8,3166.5,2.68714968]
[1642559596762,2.01331567,3166.8,3166.6,0.00397897]
[1642559597162,1.01331567,3166.8,3166.2,0.00625266]
[1642559597362,1.38355418,3166.6,3166.3,2.6828433]
[1642559597562,1.57998,3166.5,3166.3,2.6828433]
[1642559597807,1.57998,3166.5,3165.4,5.62997167]
[1642559597808,1.57998,3166.5,3166.4,0.00511582]
[1642559598006,2.78999,3166.5,3166.4,0.00511582]
[1642559598209,2.78999,3166.5,3165.7,0.00909478]
[1642559598210,3.58007,3166.5,3165.7,0.00909478]
[1642559598406,3.58007,3166.5,3165.5,3.2645]
[1642559598407,1.79008,3166.5,3165.8,2.68305356]
[1642559598606,1.79008,3166.5,3165.9,2.68305356]
[1642559598806,1.0,3166.0,3165.9,3.00795793]
[1642559599010,1.79011,3166.0,3165.9,3.0]
[1642559599210,1.79011,3166.0,3165.5,3.2645]
[1642559599410,1.0,3165.7,3165.4,1.1392]
[1642559599610,1.58021,3166.1,3165.6,0.0096632]
[1642559599810,1.0,3165.7,3165.6,0.0096632]
[1642559600010,1.79012,3165.7,3165.4,0.01080005]
[1642559600211,0.79012,3165.7,3165.4,0.01080005]
[1642559600413,1.0,3165.5,3165.4,0.01080005]
[1642559600614,1.0,3165.5,3165.3,0.01136847]
[1642559600818,0.79014,3165.8,3165.3,0.01136847]
[1642559601014,1.0,3165.3,3165.1,0.01250532]
[1642559601214,1.0,3165.3,3165.0,0.01307374]
[1642559601665,1.79025,3165.3,3165.0,0.01307374]
[1642559602365,1.0,3165.1,3165.0,0.01307374]
[1642559602967,1.0,3165.1,3164.9,0.01364217]
[1642559603165,1.0,3165.0,3164.9,0.01364217]
[1642559603866,1.0,3165.0,3164.8,0.01421059]
[1642559604269,1.0,3165.0,3164.7,0.01477901]
[1642559604469,1.0,3165.0,3164.7,1.72945457]
[1642559604669,0.7104,3165.0,3164.7,1.72945457]
[1642559604870,0.7104,3165.0,3164.8,0.01421059]
[1642559605714,0.79022,3165.2,3164.8,0.01421059]
[1642559607818,0.79022,3165.2,3164.7,0.01477901]
[1642559609967,0.49002,3165.2,3164.7,1.82566314]
[1642559610371,0.49002,3165.2,3164.8,0.01421059]
[1642559612271,1.28033,3165.2,3164.8,0.01421059]
[1642559612470,1.58068,3165.1,3164.4,0.01648429]
[1642559612711,2.37102,3165.6,3164.4,2.01648429]
[1642559612912,2.37102,3165.6,3164.6,2.91078553]
[1642559613113,2.37102,3165.6,3164.7,2.0]
[1642559613312,2.37102,3165.6,3164.7,2.80491501]
[1642559613513,2.37102,3165.6,3164.8,0.01421059]
[1642559613719,0.79018,3165.4,3164.8,0.01421059]
[1642559613914,0.79018,3165.4,3164.9,2.68370821]
[1642559614317,0.79018,3165.4,3165.0,0.01307374]
[1642559614517,0.79018,3165.3,3165.1,2.68370821]
[1642559614921,0.49308,3165.3,3165.2,0.0119369]
[1642559615118,0.49308,3165.3,3165.2,2.69564511]
[1642559616564,1.58033,3165.4,3165.2,2.69564511]
[1642559616863,1.58033,3165.4,3165.3,2.69507668]
[1642559620067,1.28343,3165.4,3165.3,2.69507668]
[1642559620910,1.28343,3165.4,3165.3,5.09507668]
[1642559621111,1.28343,3165.4,3165.3,2.69507668]
[1642559625164,0.98803,3165.4,3165.3,4.99507668]
[1642559626365,0.98803,3165.4,3165.3,2.69507668]
[1642559628813,2.14083974,3165.4,3165.3,0.01136847]
[1642559629214,1.49987,3165.3,3164.8,0.01421059]
[1642559629419,1.49987,3165.3,3164.9,2.6838248]
[1642559629420,2.29014,3165.3,3164.9,2.6838248]
[1642559629816,2.29014,3165.3,3165.0,0.01307374]
[1642559630017,1.58054,3165.3,3165.1,2.6838248]
[1642559630215,1.28534,3165.3,3165.1,2.6838248]
[1642559630419,1.28534,3165.3,3165.2,0.0119369]
[1642559630816,1.28534,3165.3,3164.8,0.01421059]
[1642559631017,0.79025,3165.2,3164.9,2.68392599]
[1642559631215,2.37077,3165.2,3164.9,2.68392599]
[1642559631467,2.37077,3165.2,3165.0,0.01307374]
[1642559631659,2.37077,3165.2,3165.1,2.68392599]
[1642559631860,2.37077,3165.2,3165.0,0.01307374]
[1642559632064,2.37077,3165.2,3165.1,0.01250532]
[1642559632262,2.37077,3165.2,3164.8,0.01421059]
[1642559632461,2.37077,3165.2,3164.9,2.6839187]
[1642559632462,0.79028,3165.1,3164.9,2.6839187]
[1642559632662,0.79028,3165.1,3165.0,2.6839187]
[1642559632864,1.09028,3165.1,3165.0,3.46307374]
[1642559633062,1.09028,3165.1,3165.0,6.14699244]
[1642559635512,0.78958,3165.1,3165.0,6.14699244]
[1642559636515,0.78958,3165.1,3165.0,2.69699244]
[1642559639971,1.58052,3165.2,3165.0,2.69699244]
[1642559640168,1.58052,3165.2,3165.1,2.6839187]
[1642559640366,1.58052,3165.2,3165.1,2.69642402]
[1642559640566,1.28492,3165.2,3165.1,2.69642402]
[1642559645718,0.98742,3165.2,3165.1,2.69642402]
[1642559646763,1.36621427,3165.2,3165.1,2.69642402]
[1642559647261,0.98742,3165.2,3165.1,2.69642402]
[1642559647462,1.58043,3165.3,3165.1,2.69642402]
[1642559647665,0.79018,3165.3,3165.2,2.6839187]
[1642559647862,0.79018,3165.3,3165.2,2.69216151]
[1642559650816,0.49518,3165.3,3165.2,6.19216151]
[1642559651017,0.49518,3165.3,3165.2,2.69216151]
[1642559655168,1.58037,3165.4,3165.2,2.69216151]
[1642559655373,1.58037,3165.4,3165.2,0.0119369]
[1642559655568,1.58037,3165.4,3164.9,1.60573334]
[1642559655569,1.79015,3165.5,3165.3,0.01136847]
[1642559655768,1.79015,3165.5,3165.0,0.01307374]
[1642559655970,1.49455,3165.5,3165.1,0.01250532]
[1642559656169,0.79015,3165.5,3164.9,0.01364217]
[1642559656369,0.79015,3165.4,3164.9,0.01364217]
[1642559656570,0.79015,3165.4,3164.9,1.61937551]
[1642559656969,0.79015,3165.4,3165.0,1.61880708]
[1642559657369,0.79015,3165.4,3165.1,0.01250532]
[1642559659825,0.79015,3165.4,3165.0,0.01307374]
[1642559660326,0.79019,3165.3,3165.0,0.01307374]
[1642559660529,1.58038,3165.3,3165.0,0.01307374]
[1642559660925,1.58038,3165.3,3164.9,0.01364217]
[1642559660926,1.29068,3165.3,3164.9,0.01364217]
[1642559661126,1.29068,3165.3,3164.8,0.01421059]
[1642559661325,0.79023,3165.2,3164.8,1.61994393]
[1642559661563,0.79023,3165.2,3164.8,0.01421059]
[1642559661763,0.79023,3165.2,3164.9,0.01364217]
[1642559661969,0.79023,3165.2,3164.8,0.01421059]
[1642559662971,2.37068,3165.2,3164.8,1.61994393]
[1642559663173,3.07388,3165.2,3164.8,1.61994393]
[1642559663370,3.07388,3165.2,3164.9,0.01364217]
[1642559663572,0.79025,3165.1,3164.9,0.01364217]
[1642559664173,0.79025,3165.1,3164.7,0.01477901]
[1642559664574,0.79025,3165.1,3164.5,0.01591586]
[1642559664874,4.40633,3165.2,3164.5,0.01591586]
[1642559664875,0.7032,3164.6,3164.5,0.01591586]
[1642559665073,0.79036,3164.7,3164.5,1.60573334]
[1642559665316,1.49356,3164.7,3164.5,1.6216492]
[1642559665518,1.49356,3164.7,3164.6,5.56534744]
[1642559665519,0.79036,3164.7,3164.6,5.56534744]
[1642559665823,0.79036,3164.7,3164.6,7.17108078]
[1642559666220,0.4818,3165.0,3164.6,7.17108078]
[1642559666420,0.4818,3165.0,3164.7,1.60573334]
[1642559666621,0.4818,3165.0,3164.7,1.62051235]
[1642559666820,0.4818,3165.0,3164.8,0.01421059]
[1642559667022,1.185,3165.0,3164.8,0.01421059]
[1642559667221,1.97527,3165.0,3164.8,0.01421059]
[1642559667622,1.97527,3165.0,3164.7,0.01477901]
[1642559667823,1.97527,3165.0,3164.6,0.01534744]
[1642559667824,0.7032,3164.8,3164.6,0.01534744]
[1642559668224,0.7032,3164.8,3164.5,0.01591586]
[1642559668528,0.7032,3164.8,3164.1,2.38781312]
[1642559668529,0.7032,3164.8,3164.4,1.62221763]
[1642559668723,5.11501938,3165.3,3164.4,1.62221763]
[1642559668993,1.0,3165.2,3164.5,1.6216492]
[1642559669184,0.79025,3164.7,3164.5,1.6216492]
[1642559669385,1.58054,3165.0,3164.6,0.01534744]
[1642559669784,1.58054,3165.0,3164.6,1.62108078]
[1642559669984,1.58054,3165.0,3164.6,0.01534744]
[1642559670184,1.58054,3165.0,3164.7,0.01477901]
[1642559670389,1.58054,3165.0,3164.6,0.01534744]
[1642559670590,0.79027,3164.9,3164.6,0.01534744]
[1642559671394,0.49017,3164.9,3164.6,0.01534744]
[1642559675021,0.49017,3164.9,3164.6,1.62108078]
[1642559675422,0.49017,3164.9,3164.7,0.01477901]
[1642559676327,1.58053,3165.0,3164.7,0.01477901]
[1642559676768,1.27483,3165.0,3164.7,0.01477901]
[1642559676968,1.27483,3165.0,3164.6,0.01534744]
[1642559677170,1.27483,3165.0,3164.6,1.62108078]
[1642559677568,1.27483,3165.0,3164.7,0.01477901]
[1642559679576,1.27483,3165.0,3164.6,1.62108078]
[1642559680079,1.27483,3165.0,3164.7,0.01477901]
[1642559680526,1.27483,3165.0,3164.6,0.01534744]
[1642559681325,1.27483,3165.0,3164.6,1.62108078]
[1642559681727,1.27483,3165.0,3164.7,0.01477901]
[1642559682026,0.97283,3165.0,3164.7,0.01477901]
[1642559682625,0.97283,3165.0,3164.6,0.01534744]
[1642559682826,0.97283,3165.0,3164.5,0.01591586]
[1642559683026,0.97283,3165.0,3164.5,1.6216492]
[1642559683230,0.97283,3165.0,3164.6,2.68429713]
[1642559683527,0.97283,3165.0,3164.7,0.01477901]
[1642559683732,0.97283,3165.0,3164.8,2.68429713]
[1642559684174,0.97283,3165.0,3164.9,2.46364217]
[1642559684371,0.97283,3165.0,3164.9,5.1479393]
[1642559684571,0.97283,3165.0,3164.9,2.6979393]
[1642559685971,1.67603,3165.0,3164.9,2.6979393]
[1642559687074,1.38473,3165.0,3164.9,2.6979393]
[1642559687721,2.17499,3165.0,3164.9,2.6979393]
[1642559689332,1.38473,3165.0,3164.9,2.6979393]
[1642559689525,0.68153,3165.0,3164.9,2.6979393]
[1642559692073,0.38353,3165.0,3164.9,2.6979393]
[1642559697143,0.09363,3165.0,3164.9,2.6979393]
[1642559697541,0.79021,3165.2,3164.9,2.6979393]
[1642559697739,0.79021,3165.2,3165.0,2.68429713]
[1642559697941,0.79021,3165.2,3165.0,2.69737087]
[1642559698141,0.79021,3165.2,3165.1,2.69680245]
[1642559698741,1.09021,3165.2,3165.1,2.69680245]
[1642559700173,1.79341,3165.2,3165.1,2.69680245]
[1642559702173,1.49341,3165.2,3165.1,2.69680245]
[1642559707273,1.19841,3165.2,3165.1,2.69680245]
[1642559707676,0.49521,3165.2,3165.1,2.69680245]
[1642559709878,1.19841,3165.2,3165.1,2.69680245]
[1642559710078,3.20335711,3165.2,3165.1,2.69680245]
[1642559710729,1.19841,3165.2,3165.1,2.69680245]
[1642559710929,3.20204196,3165.2,3165.1,2.69680245]
[1642559711930,1.19841,3165.2,3165.1,2.69680245]
[1642559712431,2.90867625,3165.2,3165.1,2.69680245]
[1642559712835,1.20591,3165.2,3165.1,2.69680245]
[1642559715076,4.20693669,3165.2,3165.1,1.08978921]
[1642559715280,4.20693669,3165.2,3164.0,1.60573334]
[1642559715281,2.3715278,3165.0,3164.0,1.60573334]
[1642559715484,2.3715278,3165.0,3163.9,3.8405]
[1642559715485,2.15755,3164.9,3163.9,3.8405]
[1642559715776,2.15755,3164.9,3164.1,0.00568424]
[1642559715777,0.455,3164.8,3164.1,0.00568424]
[1642559715977,1.18339574,3164.3,3164.1,0.00568424]
[1642559716180,0.455,3164.6,3164.1,0.00568424]
[1642559716377,0.79064,3164.3,3164.1,0.00568424]
[1642559717077,0.79064,3164.3,3163.8,0.00738951]
[1642559717477,0.79057,3164.2,3163.8,0.00738951]
[1642559717728,0.79057,3164.2,3164.0,1.60573334]
[1642559717930,0.79057,3164.2,3163.9,1.60573334]
[1642559717931,1.49377,3164.2,3163.9,1.60573334]
[1642559718131,1.49377,3164.2,3164.0,1.60573334]
[1642559718329,1.49377,3164.2,3164.0,1.611986]
[1642559718532,1.79377,3164.2,3164.0,0.00625266]
[1642559718734,1.49377,3164.2,3164.0,0.00625266]
[1642559719133,0.79057,3164.2,3164.0,0.00625266]
[1642559719735,1.49377,3164.2,3164.0,0.00625266]
[1642559720640,0.79057,3164.2,3164.0,0.00625266]
[1642559720834,1.28309,3164.3,3164.0,1.611986]
[1642559720835,0.79045,3164.3,3164.0,1.611986]
[1642559722282,0.79046,3164.3,3164.0,1.611986]
[1642559722485,0.79043,3164.4,3164.0,1.611986]
[1642559722685,0.79041,3164.5,3164.0,1.611986]
[1642559722686,0.48901,3164.5,3164.0,1.611986]
[1642559723189,0.48901,3164.5,3164.1,1.60573334]
[1642559723588,0.48901,3164.5,3164.2,0.00511581]
[1642559723788,1.27941,3164.5,3164.2,0.00511581]
[1642559724590,0.7032,3164.6,3164.2,0.00511581]
[1642559727833,0.4056,3164.6,3164.2,0.00511581]
[1642559728031,0.79032,3164.7,3164.2,0.00511581]
[1642559728633,1.58068,3164.7,3164.2,0.00511581]
[1642559728833,0.3165403,3164.6,3164.2,0.00511581]
[1642559729076,1.1069603,3164.6,3164.2,0.00511581]
[1642559729677,1.8973403,3164.6,3164.2,0.00511581]
[1642559729878,1.58092,3164.5,3164.2,0.00511581]
[1642559730277,1.58092,3164.5,3164.0,0.00625266]
[1642559731082,2.37141,3164.5,3164.0,0.00625266]
[1642559731279,0.79046,3164.3,3164.0,0.00625266]
[1642559732731,1.58092,3164.3,3164.0,0.00625266]
[1642559732922,2.079,3164.3,3164.0,0.00625266]
[1642559733923,2.379,3164.3,3164.0,0.00625266]
[1642559734828,2.379,3164.3,3163.9,1.61255442]
[1642559735027,2.379,3164.3,3163.9,0.00682108]
[1642559735229,2.379,3164.3,3164.0,2.69091785]
[1642559735428,2.379,3164.3,3164.1,2.68466519]
[1642559735628,2.379,3164.3,3164.0,2.68466519]
[1642559735828,2.379,3164.3,3164.2,3.55511581]
[1642559736030,0.79806,3164.3,3164.2,6.239781]
[1642559736475,0.3,3164.3,3164.2,6.239781]
[1642559736676,2.1972803,3164.6,3164.2,6.239781]
[1642559736878,2.1972803,3164.6,3164.3,2.68466519]
[1642559737076,2.1972803,3164.6,3164.3,2.68921258]
[1642559737276,2.1972803,3164.6,3164.4,2.68864416]
[1642559737577,2.1972803,3164.6,3164.5,2.68807573]
[1642559737776,2.1972803,3164.6,3164.5,0.00341054]
[1642559737977,1.8972803,3164.6,3164.5,2.65341054]
[1642559738176,1.8972803,3164.6,3164.5,2.65]
[1642559738377,1.8972803,3164.6,3164.5,0.00341054]
[1642559738779,1.8972803,3164.6,3164.3,2.68466519]
[1642559738977,1.8972803,3164.6,3164.3,2.68921258]
[1642559739181,1.8972803,3164.6,3164.4,2.68864416]
[1642559739483,1.8972803,3164.6,3164.5,2.68807573]
[1642559739680,1.8972803,3164.6,3164.5,0.00341054]
[1642559740329,0.79049,3164.4,3164.0,2.69091785]
[1642559740628,0.79049,3164.3,3164.1,2.68466519]
[1642559741027,0.79049,3164.3,3164.2,0.00511581]
[1642559741229,0.79049,3164.3,3164.2,2.689781]
[1642559741432,1.58098,3164.3,3164.2,2.689781]
[1642559741629,0.79049,3164.3,3164.2,2.689781]
[1642559741829,1.1069103,3164.6,3164.2,2.689781]
[1642559742032,1.1069103,3164.6,3164.3,2.68466519]
[1642559742228,1.1069103,3164.6,3164.3,2.68921258]
[1642559742430,1.1069103,3164.6,3164.4,2.68864416]
[1642559742628,1.1069103,3164.6,3164.5,2.68466519]
[1642559742828,3.12704918,3164.6,3164.5,2.68807573]
[1642559743030,5.41733918,3164.6,3164.5,2.68807573]
[1642559743229,5.41733918,3164.6,3164.5,0.00341054]
[1642559743429,6.99825918,3164.6,3164.5,0.00341054]
[1642559743628,0.79059,3164.4,3164.0,0.00625266]
[1642559743830,0.79059,3164.4,3164.1,2.68466519]
[1642559743831,0.4056,3164.2,3164.1,2.68466519]
[1642559744086,2.80531808,3164.2,3164.1,2.68466519]
[1642559745181,1.19627,3164.2,3164.0,0.00625266]
[1642559745381,1.19627,3164.2,3164.1,2.68500276]
[1642559745382,1.9868592,3164.2,3164.1,2.68500276]
[1642559745782,1.9868592,3164.2,3163.7,2.68500276]
[1642559746083,0.79059,3164.2,3163.8,2.69239227]
[1642559746283,1.5811,3164.2,3163.8,2.69239227]
[1642559746485,1.5811,3164.2,3163.9,2.69182384]
[1642559746686,1.5811,3164.2,3164.0,2.68500276]
[1642559746983,0.79049,3164.1,3164.0,2.69125542]
[1642559747583,2.37161,3164.1,3164.0,2.69125542]
[1642559748226,2.06911,3164.1,3164.0,2.69125542]
[1642559750531,0.663927,3164.1,3164.0,2.69125542]
[1642559753373,0.372027,3164.1,3164.0,2.69125542]
[1642559754387,0.79045,3164.3,3164.0,2.69125542]
[1642559754580,0.79045,3164.3,3164.1,2.68500276]
[1642559754981,0.79045,3164.3,3164.2,0.00511581]
[1642559755423,0.79045,3164.3,3164.2,2.69011857]
[1642559758331,0.49745,3164.3,3164.2,2.69011857]
[1642559758731,2.08078069,3164.3,3164.2,2.69011857]
[1642559759879,3.08078069,3164.3,3164.2,2.69011857]
[1642559760280,5.09008461,3164.3,3164.2,2.69011857]
[1642559760481,5.49568461,3164.3,3164.2,2.69011857]
[1642559760988,3.08078069,3164.3,3164.2,2.69011857]
[1642559762581,4.65878069,3164.3,3164.2,2.69011857]
[1642559762826,6.66483814,3164.3,3164.2,2.69011857]
[1642559763225,1.15794347,3164.1,3163.4,16.72381834]
[1642559763526,1.15794347,3164.1,3163.4,15.118085]
[1642559763527,0.79072,3163.8,3163.4,15.118085]
[1642559763725,0.79072,3163.8,3163.5,0.00397897]
[1642559764733,0.7907167,3163.7,3163.5,0.00397897]
[1642559764929,0.79073,3163.6,3163.5,0.00397897]
[1642559766333,0.79073,3163.6,3163.5,3.25397897]
[1642559766973,0.79073,3163.6,3163.5,0.00397897]
[1642559768474,0.49873,3163.6,3163.5,3.55397897]
[1642559768675,0.49873,3163.6,3163.4,8.25]
[1642559769880,1.58373191,3163.5,3163.4,8.25]
[1642559771225,1.58373191,3163.5,3163.0,0.1266]
[1642559771430,0.79079,3163.4,3163.0,0.1266]
[1642559771628,0.79079,3163.4,3163.1,0.00227369]
[1642559772026,0.37931969,3163.3,3163.1,0.00227369]
[1642559773230,0.79078,3163.2,3163.1,0.00227369]
[1642559773630,0.49228,3163.2,3163.1,4.30227369]
[1642559774081,0.37931969,3163.3,3163.1,4.30227369]
[1642559774281,0.37931969,3163.3,3163.2,0.3]
[1642559774482,0.37931969,3163.3,3163.2,4.90170527]
[1642559775783,0.37931969,3163.3,3163.2,0.30170527]
[1642559775984,0.37931969,3163.3,3163.2,0.00170527]
[1642559776184,0.37931969,3163.3,3163.2,2.65170527]
[1642559776388,0.37931969,3163.3,3163.2,2.95170527]
[1642559778646,0.08771969,3163.3,3163.2,2.95170527]
[1642559780051,0.08771969,3163.3,3163.2,5.65170527]
[1642559781677,0.08771969,3163.3,3163.2,2.95170527]
[1642559782480,0.08771969,3163.3,3163.2,2.65170527]
[1642559782882,0.08771969,3163.3,3163.2,2.95170527]
[1642559783380,0.08771969,3163.3,3163.2,5.63701773]
[1642559783781,0.58208969,3163.4,3163.3,2.25]
[1642559783983,0.58208969,3163.4,3163.3,4.93531246]
[1642559784185,0.58208969,3163.4,3163.3,4.9364493]
[1642559786028,0.4056,3163.5,3163.3,4.9364493]
[1642559786228,0.4056,3163.5,3163.4,2.68531246]
[1642559787128,0.79067,3163.4,3163.3,0.00113684]
[1642559787733,0.79067,3163.4,3163.2,0.00170527]
[1642559788130,0.4056,3163.5,3163.2,0.00170527]
[1642559788531,0.79067,3163.4,3163.0,2.39920545]
[1642559788731,0.79067,3163.4,3163.0,1.90857545]
[1642559788981,0.49327,3163.4,3163.0,1.90857545]
[1642559789179,0.49327,3163.4,3163.0,0.30284211]
[1642559789380,0.49327,3163.4,3163.0,0.00284211]
[1642559793930,0.20367,3163.4,3163.0,0.00284211]
[1642559797382,0.4056,3163.3,3163.0,0.00284211]
[1642559797782,0.20367,3163.4,3163.0,0.00284211]
[1642559798383,0.4056,3163.3,3163.0,0.00284211]
[1642559798583,0.79072,3163.2,3162.9,1.98517945]
[1642559798886,0.49955684,3163.2,3162.9,1.98517945]
[1642559799484,0.00113684,3163.2,3162.9,1.98517945]
[1642559799684,0.79185684,3163.2,3162.9,1.98517945]
[1642559800084,0.00113684,3163.2,3162.9,1.98517945]
[1642559800329,0.00113684,3163.2,3162.9,0.37944611]
[1642559800630,0.00113684,3163.2,3162.9,1.73233734]
[1642559800833,0.00113684,3163.2,3163.0,1.60573334]
[1642559801130,0.00113684,3163.2,3162.9,1.73233734]
[1642559801332,0.00113684,3163.2,3163.0,1.60573334]
[1642559801528,0.00113684,3163.2,3162.9,1.73233734]
[1642559801728,0.00113684,3163.2,3162.9,0.126604]
[1642559802132,0.00113684,3163.2,3163.0,2.685459]
[1642559802331,0.79186684,3163.2,3163.0,2.685459]
[1642559802732,0.79186684,3163.2,3163.1,2.685459]
[1642559803133,0.79186684,3163.2,3163.0,2.685459]
[1642559803336,0.79186684,3163.2,3163.1,2.685459]
[1642559803983,0.79186684,3163.2,3163.0,2.685459]
[1642559804179,0.49396684,3163.2,3163.1,2.685459]
[1642559804379,0.49396684,3163.2,3163.0,2.685459]
[1642559804580,0.49396684,3163.2,3163.1,2.685459]
[1642559804780,0.49396684,3163.2,3163.0,2.685459]
[1642559805180,2.50262934,3163.2,3163.0,2.685459]
[1642559805379,2.53347258,3163.2,3163.0,2.685459]
[1642559805579,0.49396684,3163.2,3163.0,2.685459]
[1642559805983,0.4056,3163.1,3163.0,2.685459]
[1642559806381,0.4056,3163.1,3163.0,2.68659584]
[1642559806782,1.62919142,3163.1,3163.0,2.68659584]
[1642559807926,1.62919142,3163.1,3163.0,0.00113684]
[1642559808326,1.62919142,3163.1,3162.9,2.68716427]
[1642559808530,0.79083,3163.0,3162.9,0.00170527]
[1642559808926,0.79083,3163.0,3162.8,0.00227369]
[1642559809130,0.79083,3163.0,3162.7,0.00284211]
[1642559809331,0.49043,3163.0,3162.8,0.00227369]
[1642559809529,0.49043,3163.0,3162.7,1.60857545]
[1642559809730,0.49043,3163.0,3162.8,0.00227369]
[1642559811135,0.89603,3163.0,3162.8,0.00227369]
[1642559811333,0.49043,3163.0,3162.8,0.00227369]
[1642559811878,0.49043,3163.0,3162.7,0.00284211]
[1642559812080,2.80528142,3163.1,3162.7,0.00284211]
[1642559812081,1.19643,3162.8,3162.7,0.00284211]
[1642559812278,0.79083,3162.8,3162.7,0.00284211]
[1642559812479,1.22359142,3163.1,3162.6,0.00341054]
[1642559812679,1.22359142,3163.1,3162.6,1.60914388]
[1642559812880,0.4056,3163.0,3162.6,1.60914388]
[1642559813078,0.4056,3163.0,3162.7,0.00284211]
[1642559813280,0.4056,3163.0,3162.7,1.60857545]
[1642559813480,0.4056,3163.0,3162.7,1.90857545]
[1642559813686,0.4056,3163.0,3162.8,0.00227369]
[1642559814483,0.1071,3163.0,3162.8,0.00227369]
[1642559816731,1.38546505,3163.0,3162.8,0.00227369]
[1642559816932,0.7908,3162.9,3162.8,0.00227369]
[1642559817534,0.7908,3162.9,3162.7,0.00284211]
[1642559818733,1.38546505,3163.0,3162.7,0.00284211]
[1642559819382,1.38546505,3163.0,3162.7,1.60857545]
[1642559819582,0.37900502,3163.3,3162.7,0.30284211]
[1642559819782,1.37900502,3163.3,3162.8,0.00227369]
[1642559820183,1.37900502,3163.3,3162.7,1.60857545]
[1642559820184,0.79074,3163.2,3162.7,1.60857545]
[1642559820381,0.79074,3163.2,3162.5,0.126617]
[1642559820382,0.79074,3163.2,3162.8,0.00227369]
[1642559820782,0.79074,3163.2,3162.7,0.00284211]
[1642559821181,0.79074,3163.2,3162.7,1.60857545]
[1642559821586,0.79074,3163.2,3162.8,0.00227369]
[1642559823227,1.58161,3163.2,3162.8,0.00227369]
[1642559823428,1.58174,3163.1,3162.8,0.00227369]
[1642559823629,1.21438724,3163.0,3162.8,0.00227369]
[1642559823830,0.79085,3162.9,3162.8,0.00227369]
[1642559824032,0.79085,3162.9,3162.6,2.68909624]
[1642559824335,0.79085,3162.9,3162.7,0.00284211]
[1642559824732,0.48905,3162.9,3162.7,0.00284211]
[1642559828783,1.0,3162.8,3162.7,0.00284211]
[1642559829498,4.54750961,3162.8,3162.7,0.00284211]
[1642559829689,2.58184,3162.8,3162.7,0.00284211]
[1642559829888,2.28334,3162.8,3162.7,0.00284211]
[1642559830088,2.28334,3162.8,3162.5,0.00397896]
[1642559830327,2.28334,3162.8,3162.6,2.6856857]
[1642559830526,1.58184,3162.8,3162.6,2.6856857]
[1642559830726,1.58184,3162.8,3162.7,0.00284211]
[1642559830929,1.58184,3162.8,3162.7,2.68852781]
[1642559831128,1.58184,3162.8,3162.7,0.00284211]
[1642559831528,1.58184,3162.8,3162.5,0.00397896]
[1642559831728,1.58184,3162.8,3162.6,2.6856857]
[1642559832134,1.58184,3162.8,3162.7,0.00284211]
[1642559832331,1.58184,3162.8,3162.7,2.68852781]
[1642559832631,3.56914964,3162.8,3162.7,2.68852781]
[1642559832833,4.2,3162.7,3161.7,2.38781312]
[1642559833032,4.2,3162.7,3161.5,1.60754435]
[1642559833033,0.7911,3162.4,3161.5,1.60754435]
[1642559833232,0.455,3162.3,3161.8,0.00511582]
[1642559833432,0.755,3162.3,3161.8,0.00511582]
[1642559833631,1.45146832,3161.9,3161.5,0.00682109]
[1642559833835,1.45146832,3161.9,3161.2,2.79894435]
[1642559833836,1.45146832,3161.9,3161.4,0.00738951]
[1642559834083,0.79119,3161.8,3161.3,0.00795793]
[1642559834483,2.582375,3161.8,3161.3,0.00795793]
[1642559834883,2.292875,3161.8,3161.3,0.00795793]
[1642559836083,0.35235851,3161.6,3161.3,0.00795793]
[1642559836283,0.79118,3161.5,3161.3,0.00795793]
[1642559836684,0.35235851,3161.6,3161.3,0.00795793]
[1642559839034,1.93474851,3161.6,3161.3,0.00795793]
[1642559839234,0.79115,3161.5,3161.3,0.00795793]
[1642559840034,0.49365,3161.5,3161.3,0.00795793]
[1642559840435,2.48413913,3161.5,3161.3,0.00795793]
[1642559840639,1.99087779,3161.4,3161.3,0.00795793]
[1642559841978,1.98046607,3161.4,3161.3,0.00795793]
[1642559842578,2.2849185,3161.5,3161.3,0.00795793]
[1642559842778,1.2849185,3161.5,3161.3,0.00795793]
[1642559843778,4.86689361,3161.5,3161.3,0.00795793]
[1642559843981,2.8629185,3161.5,3161.3,0.00795793]
[1642559844682,1.0,3161.4,3161.3,0.00795793]
[1642559845082,0.7076,3161.4,3161.3,0.00795793]
[1642559845627,1.57687836,3161.3,3161.2,0.126664]
[1642559846027,1.57687836,3161.3,3161.1,1.5936763]
[1642559846229,0.79128,3161.2,3161.1,1.5936763]
[1642559846628,0.79128,3161.2,3161.1,1.59481315]
[1642559848129,1.79128,3161.2,3161.1,4.28204079]
[1642559848329,1.79128,3161.2,3161.1,1.59481315]
[1642559848330,0.79128,3161.2,3161.1,1.59481315]